Cogmind - Beta 16 @@@ ROGUE MODE // 2025.12.14 @ 14:39:21 Player: War__Prophet Result: Destroyed by H-66 Slayer with Gauss Rifle Performance ------------- Evolutions (5) 2500 Regions Visited (7) 1400 Robots Destroyed (23) 115 Value Destroyed (555) 555 Prototype IDs (1) 20 Alien Tech Used (0) 0 Bonus (37) 37 TOTAL SCORE: 4627 Bonus ------- Follower Combat Kills 37 Cogmind --------- Core Integrity 0/1000 Matter 300/300 Energy 100/100 System Corruption 2% Temperature Cool (0) Movement Rolling (100) Location -5/Extension Parts ------- > --- POWER (2) -------- (None) > --- PROPULSION (10) -- Compact Wheel > --- UTILITY (3) ------ Advanced Heat Sink Improved Signal Interpreter Improved Transmission Jammer > --- WEAPON (2) ------- (None) > --- INVENTORY (5) ---- Fission Core Improved Coolant Injector Medium Storage Unit Improved Sensor Array Improved Datajack Peak State ------------ > --- POWER ------------ Fission Core > --- PROPULSION ------- Carbon-fiber Leg Thunder Leg Myomer Leg Myomer Leg > --- UTILITY ---------- Improved Signal Interpreter Improved Transmission Jammer Advanced Shield Generator > --- WEAPON ----------- Gauss Cannon > --- INVENTORY -------- Improved Coolant Injector Medium Storage Unit Improved Sensor Array Improved Datajack [Rating: 48] Favorites ----------- Power Light Ion Engine Engine Light Ion Engine Power Core Fission Core Propulsion Flight Unit Treads Light Treads Leg Myomer Leg Wheel Compact Wheel Flight Unit Flight Unit Utility Improved Signal Interpreter Device Improved Transmission Jammer Storage Small Storage Unit Processor Improved Signal Interpreter Weapon Field Laser Energy Gun Field Laser Ballistic Gun Assault Rifle Ballistic Cannon Gauss Cannon Slashing Weapon Ripper Special Melee Weapon Improved Datajack Build | -11 -10 -9 -8 -7 -6 -5 -5 ------- Run | Yrd Mat Mat Mat Fac Fac Fac Ext Slots Evolved 10 | . . 2 2 2 2 2 . Power 1 | . . . 1 . . . . Propulsion 8 | . . 2 . 2 2 2 . Utility 1 | . . . 1 . . . . Weapon . | . . . . . . . . Parts Attached 50 | 8 3 7 4 6 . 5 17 Power 8 | 1 . 1 1 1 . . 4 Engine 5 | 1 . 1 1 1 . . 1 Core 3 | . . . . . . . 3 Reactor . | . . . . . . . . Propulsion 21 | 4 2 2 1 1 . 1 10 Treads 2 | 2 . . . . . . . Leg 7 | . . . . . . . 7 Wheel 5 | 2 . . . . . . 3 Hover . | . . . . . . . . Flight 7 | . 2 2 1 1 . 1 . Utility 12 | 1 1 1 . 4 . 3 2 Device 9 | . 1 . . 4 . 2 2 Storage 2 | 1 . 1 . . . . . Processor 1 | . . . . . . 1 . Hackware . | . . . . . . . . Protection . | . . . . . . . . Artifact . | . . . . . . . . Weapon 9 | 2 . 3 2 . . 1 1 Energy Gun 2 | . . 1 1 . . . . Energy Cannon . | . . . . . . . . Ballistic Gun 4 | 2 . 2 . . . . . Ballistic Cannon 1 | . . . . . . 1 . Launcher . | . . . . . . . . Special Weapon . | . . . . . . . . Impact Weapon . | . . . . . . . . Slashing Weapon 1 | . . . . . . . 1 Piercing Weapon . | . . . . . . . . Special Melee Weapon 1 | . . . 1 . . . . Unidentified Prototypes 1 | . . . . 1 . . . Parts Lost 36 | . 4 5 2 2 . . 23 Power 8 | . 1 1 . . . . 6 Propulsion 17 | . 1 2 1 . . . 13 Utility 3 | . . . 1 1 . . 1 Weapon 8 | . 2 2 . 1 . . 3 Highest Loss Streak 9 | . 4 5 2 2 . . 9 To Critical Strikes . | . . . . . . . . Average Backups 3 | 1 1 4 4 4 4 4 4 Power . | . 1 . . 1 1 . . Propulsion . | 1 . 1 . . . . . Utility 1 | . . 2 2 2 2 2 3 Weapon . | . . 1 1 . . . . Tool/Special . | . . . . . . . . Unused Backups 6 | 1 . . 1 1 1 . 2 Power 2 | . . . . . 1 . 1 Propulsion 1 | 1 . . . . . . . Utility 2 | . . . . 1 . . 1 Weapon 1 | . . . 1 . . . . Tool/Special . | . . . . . . . . Average Slot Usage (%) 51 | . 78 61 32 59 46 51 42 Engine 5 | . 12 8 . 5 6 9 2 Core 1 | . . . . . . . 3 Leg 3 | . . . . . . . 8 Wheel 4 | . 24 . . . . . 1 Flight 11 | . 1 29 17 20 20 18 5 Device 9 | . 2 9 2 17 13 11 9 Storage 2 | . 14 1 . . . . . Processor 2 | . . . . . . 4 5 Energy Gun 3 | . . 2 12 15 6 5 . Ballistic Gun 4 | . 22 9 . . . . . Peak Build Rating 48 | 6 6 9 8 22 20 38 48 Average Rating 19 | 2 5 5 6 18 19 27 34 On Entrance 12 | . 6 4 3 7 19 20 38 Avg Prop Armor Cover (%) 6 | . . . . . . 7 6 Naked Turns . | . . . . . . . . Heaviest Build 28 | 14 14 10 6 12 8 11 28 Greatest Support 88 | 40 32 16 8 15 15 18 88 Greatest Overweight (x) 5 | . . . . . . . 5 Average Overweight (x) . | . . . . . . . . Largest Inventory Capacity 10 | 8 8 10 5 5 5 5 5 Average Capacity 5 | 5 8 5 5 5 5 5 5 Most Carried 5 | 3 4 5 5 5 5 5 5 Average Carried 3 | 1 1 4 4 4 4 4 4 Final Capacity 8 | 8 8 5 5 5 5 5 5 Final Carried 5 | 1 4 5 5 4 5 5 5 Class Distribution -------------------- 62% | Mutant 15% | Scavenger-Sprinter 13% | Sprinter 9% | Scavenger-Mutant Dominant Class ---------------- Mutant | -10/Materials Scavenger-Sprinter | -9/Materials Mutant | -8/Materials Sprinter | -7/Factory Sprinter | -6/Factory Scavenger-Sprinter | -5/Factory Mutant | -5/Extension Resources | -11 -10 -9 -8 -7 -6 -5 -5 ----------- Run | Yrd Mat Mat Mat Fac Fac Fac Ext Matter Collected 1009 | 267 36 36 178 . . . 492 Remotely . | . . . . . . . . Salvage Created 652 | . 171 36 37 . . . 408 Parts 38 | . 14 5 5 . . . 14 Haulers Intercepted . | . . . . . . . . Recyclers Shooed 3 | . 1 . . . . . 2 Parts Field Recycled . | . . . . . . . . Retrieved Matter . | . . . . . . . . Parts Self-Destructed . | . . . . . . . . Prevented . | . . . . . . . . Parts Restored . | . . . . . . . . Kills | -11 -10 -9 -8 -7 -6 -5 -5 ------- Run | Yrd Mat Mat Mat Fac Fac Fac Ext Combat Hostiles Destroyed 20 | . 8 4 3 . . . 5 Melee 3 | . . . . . . . 3 Guns 15 | . 8 4 3 . . . . Cannons 2 | . . . . . . . 2 Classes Destroyed 5 | . 2 . . . . . 3 Recycler 2 | . . . . . . . 2 Watcher 1 | . . . . . . . 1 Swarmer 13 | . 6 4 3 . . . . Grunt 4 | . 2 . . . . . 2 Sentry 3 | . . . . . . . 3 Best Kill Streak 4 | . 4 4 1 . . . 3 Combat Bots Only 4 | . 4 4 1 . . . 2 Max Kills in Single Turn 1 | . 1 1 1 . . . 1 Gunslinging . | . . . . . . . . Exploded . | . . . . . . . . Melee 1 | . . . . . . . 1 Uniques/NPCs Destroyed . | . . . . . . . . Combat | -11 -10 -9 -8 -7 -6 -5 -5 -------- Run | Yrd Mat Mat Mat Fac Fac Fac Ext Hostile Shots Fired 307 | . 67 50 13 9 6 . 162 Missed 105 | . 24 18 6 6 4 . 47 Hits 202 | . 43 32 7 3 2 . 115 Melee 2 | . . . . 2 . . . Projectile 200 | . 43 32 7 1 2 . 115 Critical Strikes 12 | . . . . 1 . . 11 Damage Taken 3663 | . 418 416 82 57 12 . 2678 Core 1228 | . 65 121 16 . 12 . 1014 Absorbed by Shields 60 | . . . . . . . 60 Core Remaining (%) 89 | 100 74 69 97 100 98 . . Volleys Fired 105 | . 29 20 4 4 . 2 46 Largest 2 | . 2 2 2 2 . 2 1 Hottest 128 | . 40 65 128 128 . 103 40 Shots Fired 137 | . 45 30 6 6 . 4 46 Gun 89 | . 45 30 6 6 . 2 . Cannon 48 | . . . . . . 2 46 Launcher . | . . . . . . . . Special . | . . . . . . . . Kinetic 117 | . 45 24 . . . 2 46 Thermal 20 | . . 6 6 6 . 2 . Explosive . | . . . . . . . . Electromagnetic . | . . . . . . . . Robot Hit Streak 9 | . 4 7 4 1 . . 9 Robot Miss Streak 6 | . 3 6 6 6 . . 2 Penetration Max . | . . . . . . . . Secondary Targets 1 | . 1 . . . . . . Max Gunslinging Chain 1 | . 1 . . . . . . Shots Hit Robots 105 | . 25 25 5 2 . . 48 Core Hits 48 | . 10 10 5 2 . . 21 Critical Kills . | . . . . . . . . Critical Parts Destroyed 1 | . . 1 . . . . . Critical Strikes 8 | . . 1 . . . . 7 Destroy 1 | . . 1 . . . . . Blast 6 | . . . . . . . 6 Sever 1 | . . . . . . . 1 Melee Attacks 12 | . . . . . . . 12 Impact . | . . . . . . . . Slashing 12 | . . . . . . . 12 Piercing . | . . . . . . . . Sneak Attacks 1 | . . . . . . . 1 Combat Hostiles . | . . . . . . . . Follow-up Attacks . | . . . . . . . . Damage Inflicted 2110 | . 336 226 62 22 . . 1464 Guns 644 | . 334 226 62 22 . . . Cannons 1062 | . . . . . . . 1062 Explosions . | . . . . . . . . Melee 366 | . . . . . . . 366 Ramming 38 | . 2 . . . . . 36 Kinetic 1555 | . 334 159 . . . . 1062 Thermal 151 | . . 67 62 22 . . . Explosive . | . . . . . . . . Electromagnetic . | . . . . . . . . Impact . | . . . . . . . . Slashing 366 | . . . . . . . 366 Piercing . | . . . . . . . . Highest Corruption 2 | . . . . . . . 2 Average Corruption 2 | . . . . . . . 2 Corruption Purged . | . . . . . . . . Corruption Blocked . | . . . . . . . . Overload Shots . | . . . . . . . . Overflow Damage 64 | . . . . . . . 64 Projectiles 1 | . . . . . . . 1 Explosions 63 | . . . . . . . 63 Melee . | . . . . . . . . Knockbacks 2 | . . . . . . . 2 Impact . | . . . . . . . . Kinetic 2 | . . . . . . . 2 Secondary . | . . . . . . . . Self-Inflicted Damage 115 | . 1 . . . . . 114 Shots 1 | . . . . . . . 1 Rammed 4 | . 2 . . . . . 2 Targets Rammed 28 | . 2 . . . . . 26 Kicked 24 | . . . . . . . 24 Crushed . | . . . . . . . . Highest Temperature 180 | . . 134 39 180 . 72 17 Average Temperature 58 | . . 69 16 111 . 39 9 Received Heat Transfer 911 | . 138 99 27 9 . . 638 Siege Activations . | . . . . . . . . Martial Activations . | . . . . . . . . Shielding Activations . | . . . . . . . . Robots Disrupted . | . . . . . . . . Combat Hostiles . | . . . . . . . . Robots Corrupted . | . . . . . . . . Combat Hostiles . | . . . . . . . . Parts Fried . | . . . . . . . . Impact Corruptions . | . . . . . . . . Robots Melted . | . . . . . . . . Combat Hostiles . | . . . . . . . . Parts Melted 1 | . . 1 . . . . . Heat Transferred 236 | . . 85 109 42 . . . Parts Sabotaged . | . . . . . . . . Parts Stolen . | . . . . . . . . Parts Stripped . | . . . . . . . . Power Chain Reactions . | . . . . . . . . Alert | -11 -10 -9 -8 -7 -6 -5 -5 ------- Run | Yrd Mat Mat Mat Fac Fac Fac Ext Maximum Alert Level . | . . . . . . . . Low Security (%) 100 | 100 100 100 100 100 100 100 100 Level 1 . | . . . . . . . . Level 2 . | . . . . . . . . Level 3 . | . . . . . . . . Level 4 . | . . . . . . . . Level 5 . | . . . . . . . . High Security . | . . . . . . . . Max Security . | . . . . . . . . Peak Influence 145 | . 127 145 85 53 . 17 47 Initial 40 | . . 40 27 33 . . . Average 19 | . 49 91 45 19 . 1 7 Influence Increases 782 | . 207 135 115 30 . 17 278 Destroy 0b10 Robot/C 420 | . 160 80 60 . . . 120 Destroy 0b10 Robot/NC 20 | . . . . . . . 20 Destroy Leader 62 | . 30 10 10 . . . 12 Allied During Kill 1 | . . . . . . . 1 Successful Hack 8 | . . . . . . . 8 Disable Machine 30 | . . . . . . 15 15 Destroy Structure 46 | . 2 . . . . 2 42 Partial Spotted 30 | . . 30 . . . . . Lose Combat Pursuer 165 | . 15 15 45 30 . . 60 Influence Decreases 782 | . 110 167 105 105 . 17 278 Entered New Map 137 | . . 57 38 42 . . . Time Decay 391 | . 70 60 50 63 . 17 131 Lost Part 180 | . 40 50 17 . . . 73 Lost Ally 74 | . . . . . . . 74 Squads Dispatched 8 | . 2 1 1 2 . . 2 Investigation 1 | . . . . . . . 1 Extermination . | . . . . . . . . Reinforcement 7 | . 2 1 1 2 . . 1 Assault . | . . . . . . . . Garrison . | . . . . . . . . Intercept . | . . . . . . . . Searches Triggered . | . . . . . . . . Construction Impeded . | . . . . . . . . Haulers Reinforced . | . . . . . . . . Active Scanning Responses . | . . . . . . . . Cargo Convoy Interrupts . | . . . . . . . . Stealth | -11 -10 -9 -8 -7 -6 -5 -5 --------- Run | Yrd Mat Mat Mat Fac Fac Fac Ext Distress Signals 4 | . 1 2 . . . . 1 Communications Jammed 4 | . . . . . . . 4 Distress Signals 4 | . . . . . . . 4 Times Spotted 61 | . 15 11 10 7 1 . 17 Peak Tracking Total 6 | . 6 5 3 4 1 . 4 Tactical Retreats 9 | . 1 1 2 1 . . 4 Traps | -11 -10 -9 -8 -7 -6 -5 -5 ------- Run | Yrd Mat Mat Mat Fac Fac Fac Ext Traps Triggered . | . . . . . . . . Indirectly . | . . . . . . . . Trap Hack Attempts . | . . . . . . . . Triggered . | . . . . . . . . Disarmed . | . . . . . . . . Reprogrammed . | . . . . . . . . Reused . | . . . . . . . . Traps Extracted . | . . . . . . . . Installed . | . . . . . . . . Triggered . | . . . . . . . . Machines | -11 -10 -9 -8 -7 -6 -5 -5 ---------- Run | Yrd Mat Mat Mat Fac Fac Fac Ext Machines Disabled 2 | . . . . . . 1 1 Max in Single Turn 1 | . . . . . . 1 1 Energy Cycler 1 | . . . . . . . 1 Machines Repaired . | . . . . . . . . Machines Dismantled . | . . . . . . . . Machines Sabotaged . | . . . . . . . . Overloaded Fab Kills . | . . . . . . . . Hacking | -11 -10 -9 -8 -7 -6 -5 -5 --------- Run | Yrd Mat Mat Mat Fac Fac Fac Ext Machines Accessed 2 | . . . . . . 1 1 Terminals 2 | . . . . . . 1 1 Fabricators . | . . . . . . . . Repair Stations . | . . . . . . . . Recycling Units . | . . . . . . . . Scanalyzers . | . . . . . . . . Garrison Access . | . . . . . . . . Total Hacks 6 | . . . . . . 2 4 Successful 4 | . . . . . . 1 3 Failed 2 | . . . . . . 1 1 Catastrophic 1 | . . . . . . . 1 Database Lockouts . | . . . . . . . . Manual . | . . . . . . . . Terminals 6 | . . . . . . 2 4 Fabricators . | . . . . . . . . Repair Stations . | . . . . . . . . Recycling Units . | . . . . . . . . Scanalyzers . | . . . . . . . . Garrison Access . | . . . . . . . . Terminal Hacks 4 | . . . . . . 1 3 Record 1 | . . . . . . . 1 Part Schematic 1 | . . . . . . . 1 Open Door 1 | . . . . . . 1 . Alert Level 1 | . . . . . . . 1 Fabricator Hacks . | . . . . . . . . Repair Station Hacks . | . . . . . . . . Recycling Unit Hacks . | . . . . . . . . Scanalyzer . | . . . . . . . . Garrison Access Hacks . | . . . . . . . . Unauthorized Hacks . | . . . . . . . . Terminals . | . . . . . . . . Fabricators . | . . . . . . . . Repair Stations . | . . . . . . . . Recycling Units . | . . . . . . . . Scanalyzers . | . . . . . . . . Garrison Access . | . . . . . . . . Data Cores Recovered . | . . . . . . . . Used . | . . . . . . . . Hacking Detections 2 | . . . . . . 1 1 Full Trace Events 1 | . . . . . . . 1 Feedback Events . | . . . . . . . . Feedback Blocked . | . . . . . . . . Robot Schematics Acquired . | . . . . . . . . Robots Built . | . . . . . . . . Authchips . | . . . . . . . . Time . | . . . . . . . . Total Robot Build Rating . | . . . . . . . . Part Schematics Acquired 1 | . . . . . . . 1 Parts Built . | . . . . . . . . Authchips . | . . . . . . . . Time . | . . . . . . . . Total Part Build Rating . | . . . . . . . . Part Studies Acquired . | . . . . . . . . Parts Repaired . | . . . . . . . . Time . | . . . . . . . . Parts Recycled . | . . . . . . . . Recycled Matter . | . . . . . . . . Retrieved Matter . | . . . . . . . . Retrieved Components . | . . . . . . . . Parts Scanalyzed . | . . . . . . . . Part Schematics Acquired . | . . . . . . . . Parts Damaged . | . . . . . . . . Bothacking | -11 -10 -9 -8 -7 -6 -5 -5 ------------ Run | Yrd Mat Mat Mat Fac Fac Fac Ext Used RIF Installer . | . . . . . . . . Robots Hacked . | . . . . . . . . Non-combat . | . . . . . . . . Combat . | . . . . . . . . Robot Hacks Applied . | . . . . . . . . Relay Couplers Released . | . . . . . . . . Fabnet Peak Effective % . | . . . . . . . . Robots Rewired 7 | . . . . . . . 7 Allies Hacked . | . . . . . . . . Hacks Repelled . | . . . . . . . . Allies | -11 -10 -9 -8 -7 -6 -5 -5 -------- Run | Yrd Mat Mat Mat Fac Fac Fac Ext Total Allies 7 | . . . . . . . 7 Largest Group 1 | . . . . . . . 1 Highest-Rated Group 39 | . . . . . . . 39 Highest-Rated Ally 39 | . . . . . . . 39 Total Orders . | . . . . . . . . Ally Attacks 21 | . . . . . . . 21 Total Damage 504 | . . . . . . . 504 Kills 2 | . . . . . . . 2 Allies Corrupted . | . . . . . . . . Allies Melted . | . . . . . . . . Intel | -11 -10 -9 -8 -7 -6 -5 -5 ------- Run | Yrd Mat Mat Mat Fac Fac Fac Ext Active Infowar (turns) 908 | . . . . 177 . 192 539 Sensors 607 | . . . . . . 192 415 Seismic 177 | . . . . 177 . . . Jamming 552 | . . . . . . 109 443 Robot Analysis Total . | . . . . . . . . Derelict Logs Recovered . | . . . . . . . . Drone Launches . | . . . . . . . . Drone Recoveries . | . . . . . . . . Exploration | -11 -10 -9 -8 -7 -6 -5 -5 ------------- Run | Yrd Mat Mat Mat Fac Fac Fac Ext Turns Passed 2002 | 342 242 131 118 184 31 206 748 Spaces Moved 2287 | 222 166 207 201 235 88 522 646 Core 30 | 21 . . . . . . 9 Treads 159 | 159 . . . . . . . Legs 206 | . . . . . . . 206 Wheels 235 | 42 132 . . . . . 61 Hover . | . . . . . . . . Flight 1657 | . 34 207 201 235 88 522 370 Fastest Speed 28 | 50 37 31 37 28 28 32 29 Average Speed 57 | 138 87 34 37 33 31 32 67 Slowest Speed 300 | 160 100 37 40 37 32 34 300 Overloaded Moves 22 | . . . . 18 4 . . Propulsion Burnouts . | . . . . . . . . Robots Hopped 13 | . 1 1 1 . . 6 4 Potential Cave-ins . | . . . . . . . . Cave-ins Triggered . | . . . . . . . . Exploration Rate (%) 20 | 9 47 25 18 5 3 13 43 Regions Visited 7 Branch Regions 1 Pre-discovered Areas . | . . . . . . . . Known Exits Taken 1 | . . . . . . 1 . Unknown Exits Taken 6 | 1 1 1 1 1 1 . . Scrap Searched . | . . . . . . . . Spaces Dug . | . . . . . . . . Terrain Destroyed 24 | . . . . . . 1 23 Melee . | . . . . . . . . Projectile 10 | . . . . . . 1 9 AOE 14 | . . . . . . . 14 Terrain Rammed . | . . . . . . . . Walls Destroyed . | . . . . . . . . Machines Disabled . | . . . . . . . . Actions | -11 -10 -9 -8 -7 -6 -5 -5 --------- Run | Yrd Mat Mat Mat Fac Fac Fac Ext Total 2805 | 260 216 239 236 335 90 549 880 Wait 183 | . 14 . 23 87 . 20 39 Move 2254 | 221 163 204 198 234 87 509 638 Hop 13 | . 1 1 1 . . 6 4 Pick Up 20 | 10 3 1 1 . 2 2 1 Fast Attach 47 | 11 2 5 4 5 . 4 16 Attach 11 | . 1 3 1 2 . 2 2 Detach 15 | 4 1 4 2 2 . 1 1 Swap . | . . . . . . . . Drop 22 | 14 . 1 2 1 1 3 . Fire 105 | . 29 20 4 4 . 2 46 Melee 12 | . . . . . . . 12 Ram 4 | . 2 . . . . . 2 Kick 24 | . . . . . . . 24 Crush . | . . . . . . . . Escape Stasis . | . . . . . . . . Rewire 95 | . . . . . . . 95 Trap . | . . . . . . . . Miscellaneous . | . . . . . . . . Route ------- -11/Scrapyard -10/Materials (discovered 2 exits: [*Mat] / [*Min]) -9/Materials -8/Materials -7/Factory -6/Factory -5/Factory -5/Extension History --------- Turn | Location | Event 11 | -11/Scrapyard | Discovered new exit (range 15) 343 | -11/Scrapyard | Entered Materials 344 | -10/Materials | Met a group of wandering Federalists 359 | -10/Materials | Build established: Mutant 423 | -10/Materials | Discovered new exit (range 16) 584 | -10/Materials | Discovered new exit (range 4) 585 | -10/Materials | Entered another Materials area 585 | -9/Materials | Evolved 2 slots: Propulsion x2 592 | -9/Materials | Lost 4 parts (1p1n2w) 713 | -9/Materials | Discovered new exit (range 8) 716 | -9/Materials | Entered another Materials area 716 | -8/Materials | Evolved 2 slots: Power x1, Utility x1 725 | -8/Materials | Lost 5 parts (1p2n2w) 832 | -8/Materials | Discovered new exit (range 5) 834 | -8/Materials | Entered Factory 834 | -7/Factory | Evolved 2 slots: Propulsion x2 1016 | -7/Factory | Discovered new exit (range 7) 1018 | -7/Factory | Entered another Factory area 1018 | -6/Factory | Evolved 2 slots: Propulsion x2 1045 | -6/Factory | Discovered new exit (range 11) 1049 | -6/Factory | Entered another Factory area 1049 | -5/Factory | Evolved 2 slots: Propulsion x2 1254 | -5/Factory | Discovered new exit (range 6) 1255 | -5/Factory | Identified exit to Extension 1255 | -5/Factory | Entered Extension 1338 | -5/Extension | Spotted B-75 Beast 1467 | -5/Extension | Lost 3 allies 1481 | -5/Extension | Lost 9 parts (2p6n1w) 1737 | -5/Extension | Lost 3 parts (1p2n) 1795 | -5/Extension | Core integrity fell below 50% 1823 | -5/Extension | Lost 5 parts (1p2n1u1w) 1830 | -5/Extension | Disrupted transfer network 1965 | -5/Extension | Energy Cycler disabled 1965 | -5/Extension | Rescued a captive Derelict 1965 | -5/Extension | Rescued a captive Derelict 1967 | -5/Extension | Rescued a captive Derelict 1967 | -5/Extension | Rescued a captive Derelict 1967 | -5/Extension | Rescued a captive Derelict 1968 | -5/Extension | Rescued a captive Derelict 1990 | -5/Extension | Core integrity fell below 20% 2003 | -5/Extension | Destroyed by H-66 Slayer with Gauss Rifle Last Messages --------------- 01988_ Slammed into Y-64 Sentinel. 01988_ Destabilizing: System corrupted (+2). 01988_ U-05 Engineer lays Concrete. 01989_ Penetrated by Slug. 01991_ Slug penetrates Wall. 01993_ Penetrated by Slug. 01993_ Com. Wheel destroyed. 01995_ Attempting to rewire AG-N4W(l). 01996_ AG-N4W(l) rewired. 01997_ Attempting to rewire PF-DQL(l). 01997_ U-05 Engineer lays Concrete. 01998_ Attempting to rewire PF-DQL(l). 01998_ Slug penetrates AG-N4W(l). 01999_ Attempting to rewire PF-DQL(l). 02000_ AG-N4W(l) destroyed. 02000_ Slug penetrates Wall. 02001_ Attempting to rewire PF-DQL(l). 02001_ Slug penetrates Wall. 02001_ U-05 Engineer lays Concrete. 02002_ Attempting to rewire PF-DQL(l). Map ----- +----------------------------------------------------+ | | | | | | | | | | | | | | | | | | | | | | | | | | | | | | | | | | | | | | | | | | | ####?????????????????????????????????????????????? | | #?????????????????????????????????????????????? | | #?????????????????########????????????????????? | | #?????????????????# l #????????????????????? | | #?????????????????# g@= #????????????????????? | | ################### l #????????????????????? | | |%!%% + %[[* #????????????????????? | | ##########=! ## Y* #????????????????????? | | ####????????# ## +??#?????????????????? | | ?????######## #####h### #?????????????????? | | ####?# #%% %% ##????????????????? | | % #?# #% #??????????????? | | %#?# % !+% #??????????????? | | !! #?# # #??????????????? | | % #?# # #??????????????? | | ### + ""T"" #??????????????? | | %# ##+##### """"" #??????????????? | | #### ##### #??????????????? | | %+%% ! #??????????????? | | ##############"""""""""#########?????????????????? | | ???###???????### ###?????????????????????????? | | ???????????????#######???????????????????????????? | | ?????????????????????????????????????????????????? | | ?????????????????????????????????????????????????? | | ?????????????????????????????????????????????????? | | ?????????????????????????????????????????????????? | | ?????????????????????????????????????????????????? | | ?????????????????????????????????????????????????? | | ?????????????????????????????????????????????????? | +----------------------------------------------------+ Best States ------------- Heat Dissipation 59 Energy Generation 32 Energy Capacity 365 Matter Stores 300 Matter Capacity 300 Sight Range 16 Robot Scan Range 15 Terrain Scan Density 10 Jamming Range 14 Weapon Cycling 30 Evasion (%) 70 Recoil Reduction 2 Item Schematics ----------------- Imp. Force Booster | -5/Extension | Hacked Robot Schematics ------------------ None Fabricated ------------ Nothing Repaired ---------- Nothing Studied --------- None Alien Tech Used ----------------- None Achievements -------------- Explosive Keycard Challenges ------------ None Game ------ Seed AssembledLongswordCannon Manual? 0 Play Time 00:28:09 Cumulative 49.6 hours Start 2025.12.01 @ 08:28:19 End 2025.12.14 @ 14:39:21 Sessions 6 Manual Loads 0 Difficulty Rogue Special Mode None Game No. 189 Rogue 189 Adventurer 0 Explorer 0 Win Type - Total 0 Types 0/0/0/0/0/0/0/0/0/0 Lore% 12 Gallery% 36 Achievement% 25 Wizard Run 0 Options --------- Layout 1 ASCII 0 Keyboard 1 Movement Vi Keybinds 0 Fullscreen 1 Font 16/SmallcapsGlow Map View 55x38 Zoom Use 0% Tactical HUD 1 Map Filters NONE Filters NONE Steam 1 RUN: 45a410d2-3a14-41c2-b1f1-7ec7ab3f2802